[Event "Titled Tuesday Blitz May 23 Late 2023"]
[White "Janaszak, Dawid"]
[Black "Haydon, David L"]
[WhiteFideId "1119206"]
[BlackFideId "415405"]
[WhiteElo "2220"]
[BlackElo "2326"]
[Result "1/2-1/2"]
[Round "06"]
[TimeControl "180+2"]
[Date "2023.05.23"]
[WhiteClock "0:00:05"]
[BlackClock "0:01:06"]

1. d4 {[%clk 0:03:00]}  c6 {[%clk 0:02:58]} 2. e4 {[%clk 0:02:59]}  d5 {[%clk 0:02:58]} 3. exd5 {[%clk 0:03:00]}  cxd5 {[%clk 0:02:59]} 4. Bd3 {[%clk 0:03:01]}  Nf6 {[%clk 0:02:59]} 5. c3 {[%clk 0:03:00]}  Nc6 {[%clk 0:03:00]} 6. Bf4 {[%clk 0:03:00]}  Bg4 {[%clk 0:02:59]} 7. Qb3 {[%clk 0:03:01]}  Qd7 {[%clk 0:02:59]} 8. Nd2 {[%clk 0:03:01]}  e6 {[%clk 0:02:59]} 9. Ngf3 {[%clk 0:03:01]}  Bxf3 {[%clk 0:03:00]} 10. Nxf3 {[%clk 0:03:01]}  Bd6 {[%clk 0:03:00]} 11. Bxd6 {[%clk 0:03:02]}  Qxd6 {[%clk 0:03:01]} 12. O-O {[%clk 0:03:02]}  Rb8 {[%clk 0:03:01]} 13. Rae1 {[%clk 0:03:01]}  Nd7 {[%clk 0:03:01]} 14. Qc2 {[%clk 0:02:38]}  g6 {[%clk 0:03:00]} 15. Qe2 {[%clk 0:02:33]}  O-O {[%clk 0:03:00]} 16. h4 {[%clk 0:02:31]}  Kg7 {[%clk 0:02:59]} 17. g3 {[%clk 0:02:28]}  Rbe8 {[%clk 0:02:57]} 18. Kg2 {[%clk 0:02:26]}  e5 {[%clk 0:02:54]} 19. dxe5 {[%clk 0:02:23]}  Ndxe5 {[%clk 0:02:54]} 20. Nxe5 {[%clk 0:02:14]}  Rxe5 {[%clk 0:02:53]} 21. Qf3 {[%clk 0:02:09]}  Rfe8 {[%clk 0:02:54]} 22. Rd1 {[%clk 0:01:45]}  Qc5 {[%clk 0:02:49]} 23. Qf4 {[%clk 0:01:35]}  h5 {[%clk 0:02:45]} 24. Rd2 {[%clk 0:01:23]}  R5e6 {[%clk 0:02:34]} 25. Qa4 {[%clk 0:01:17]}  a6 {[%clk 0:02:30]} 26. Rfd1 {[%clk 0:01:00]}  Re1 {[%clk 0:02:29]} 27. Qc2 {[%clk 0:00:52]}  R8e6 {[%clk 0:02:13]} 28. Rxe1 {[%clk 0:00:49]}  Rxe1 {[%clk 0:02:12]} 29. Re2 {[%clk 0:00:48]}  Rxe2 {[%clk 0:02:01]} 30. Qxe2 {[%clk 0:00:49]}  d4 {[%clk 0:02:01]} 31. cxd4 {[%clk 0:00:43]}  Qxd4 {[%clk 0:01:58]} 32. Be4 {[%clk 0:00:42]}  Qe5 {[%clk 0:01:53]} 33. Bf3 {[%clk 0:00:25]}  Qxe2 {[%clk 0:01:52]} 34. Bxe2 {[%clk 0:00:26]}  Nd4 {[%clk 0:01:51]} 35. Bf3 {[%clk 0:00:25]}  b6 {[%clk 0:01:45]} 36. Bb7 {[%clk 0:00:23]}  a5 {[%clk 0:01:44]} 37. Kf1 {[%clk 0:00:22]}  Kf6 {[%clk 0:01:43]} 38. Ke1 {[%clk 0:00:21]}  Ke5 {[%clk 0:01:43]} 39. Kd2 {[%clk 0:00:22]}  f6 {[%clk 0:01:43]} 40. Kd3 {[%clk 0:00:21]}  Nf5 {[%clk 0:01:39]} 41. Be4 {[%clk 0:00:19]}  Ne7 {[%clk 0:01:39]} 42. Bg2 {[%clk 0:00:15]}  g5 {[%clk 0:01:37]} 43. Kc4 {[%clk 0:00:14]}  gxh4 {[%clk 0:01:35]} 44. gxh4 {[%clk 0:00:15]}  Kd6 {[%clk 0:01:28]} 45. Bf3 {[%clk 0:00:13]}  Ng6 {[%clk 0:01:27]} 46. Bxh5 {[%clk 0:00:13]}  Nxh4 {[%clk 0:01:27]} 47. Kb5 {[%clk 0:00:13]}  Kc7 {[%clk 0:01:27]} 48. b4 {[%clk 0:00:13]}  axb4 {[%clk 0:01:26]} 49. Kxb4 {[%clk 0:00:13]}  Ng2 {[%clk 0:01:27]} 50. a4 {[%clk 0:00:12]}  Nf4 {[%clk 0:01:27]} 51. Bf3 {[%clk 0:00:12]}  Nd3+ {[%clk 0:01:27]} 52. Kb5 {[%clk 0:00:11]}  Nxf2 {[%clk 0:01:22]} 53. a5 {[%clk 0:00:12]}  bxa5 {[%clk 0:01:23]} 54. Kxa5 {[%clk 0:00:12]}  Kd6 {[%clk 0:01:23]} 55. Kb4 {[%clk 0:00:13]}  Ke5 {[%clk 0:01:24]} 56. Kc3 {[%clk 0:00:12]}  Kf4 {[%clk 0:01:24]} 57. Bb7 {[%clk 0:00:11]}  Ke3 {[%clk 0:01:24]} 58. Bc8 {[%clk 0:00:11]}  Ne4+ {[%clk 0:01:23]} 59. Kc2 {[%clk 0:00:10]}  Nd6 {[%clk 0:01:22]} 60. Bd7 {[%clk 0:00:11]}  Nc4 {[%clk 0:01:22]} 61. Kd1 {[%clk 0:00:10]}  Ne5 {[%clk 0:01:22]} 62. Be6 {[%clk 0:00:09]}  Nd3 {[%clk 0:01:22]} 63. Bc8 {[%clk 0:00:08]}  Nc5 {[%clk 0:01:18]} 64. Kc2 {[%clk 0:00:07]}  Kf4 {[%clk 0:01:12]} 65. Kd1 {[%clk 0:00:08]}  Ne4 {[%clk 0:01:11]} 66. Ke1 {[%clk 0:00:07]}  Nd6 {[%clk 0:01:12]} 67. Bd7 {[%clk 0:00:08]}  Ke5 {[%clk 0:01:12]} 68. Kf1 {[%clk 0:00:08]}  Ne4 {[%clk 0:01:12]} 69. Kg2 {[%clk 0:00:07]}  Nc5 {[%clk 0:01:12]} 70. Bc8 {[%clk 0:00:07]}  Nd3 {[%clk 0:01:09]} 71. Kh3 {[%clk 0:00:07]}  Nf4+ {[%clk 0:01:10]} 72. Kg4 {[%clk 0:00:07]}  Ng6 {[%clk 0:01:10]} 73. Kh3 {[%clk 0:00:05]}  Ne7 {[%clk 0:01:11]} 74. Bd7 {[%clk 0:00:05]}  Kf4 {[%clk 0:01:11]} 75. Kg2 {[%clk 0:00:05]}  Nd5 {[%clk 0:01:11]} 76. Bc8 {[%clk 0:00:05]}  Ne3+ {[%clk 0:01:12]} 77. Kg1 {[%clk 0:00:05]}  Nd5 {[%clk 0:01:12]} 78. Bd7 {[%clk 0:00:05]}  Ne7 {[%clk 0:01:13]} 79. Be6 {[%clk 0:00:05]}  Ke5 {[%clk 0:01:13]} 80. Bd7 {[%clk 0:00:06]}  Kd6 {[%clk 0:01:14]} 81. Bg4 {[%clk 0:00:06]}  Nd5 {[%clk 0:01:13]} 82. Bh3 {[%clk 0:00:06]}  Nf4 {[%clk 0:01:13]} 83. Bc8 {[%clk 0:00:06]}  Ne6 {[%clk 0:01:12]} 84. Kf2 {[%clk 0:00:04]}  Ke5 {[%clk 0:01:10]} 85. Bd7 {[%clk 0:00:04]}  Nc5 {[%clk 0:01:10]} 86. Bc8 {[%clk 0:00:05]}  Ne4+ {[%clk 0:01:10]} 87. Ke3 {[%clk 0:00:04]}  Nd6 {[%clk 0:01:10]} 88. Bd7 {[%clk 0:00:05]}  Nc4+ {[%clk 0:01:09]} 89. Kf2 {[%clk 0:00:05]}  Nb6 {[%clk 0:01:10]} 90. Bg4 {[%clk 0:00:04]}  Kf4 {[%clk 0:01:10]} 91. Be6 {[%clk 0:00:05]}  Na4 {[%clk 0:01:10]} 92. Bc8 {[%clk 0:00:05]}  Nc3 {[%clk 0:01:10]} 93. Be6 {[%clk 0:00:05]}  Ne4+ {[%clk 0:01:10]} 94. Kg1 {[%clk 0:00:05]}  Ke5 {[%clk 0:01:10]} 95. Bc8 {[%clk 0:00:05]}  Ng5 {[%clk 0:01:11]} 96. Bd7 {[%clk 0:00:05]}  Ne6 {[%clk 0:01:10]} 97. Bc8 {[%clk 0:00:06]}  f5 {[%clk 0:01:10]} 98. Kf1 {[%clk 0:00:06]}  f4 {[%clk 0:01:10]} 99. Kf2 {[%clk 0:00:06]}  Nd4 {[%clk 0:01:09]} 100. Bd7 {[%clk 0:00:06]}  Nb3 {[%clk 0:01:08]} 101. Bc8 {[%clk 0:00:07]}  Nc5 {[%clk 0:01:09]} 102. Kf3 {[%clk 0:00:06]}  Ne4 {[%clk 0:01:08]} 103. Ke2 {[%clk 0:00:05]}  Ng5 {[%clk 0:01:08]} 104. Kf2 {[%clk 0:00:05]}  Ke4 {[%clk 0:01:07]} 105. Bb7+ {[%clk 0:00:04]}  Kf5 {[%clk 0:01:07]} 106. Ba8 {[%clk 0:00:04]}  Kg4 {[%clk 0:01:06]} 107. Bb7 {[%clk 0:00:03]}  Nf7 {[%clk 0:01:05]} 108. Bc8+ {[%clk 0:00:03]}  Kg5 {[%clk 0:01:05]} 109. Bb7 {[%clk 0:00:04]}  Ne5 {[%clk 0:01:05]} 110. Ba8 {[%clk 0:00:04]}  Nd3+ {[%clk 0:01:05]} 111. Kf3 {[%clk 0:00:04]}  Nc5 {[%clk 0:01:05]} 112. Kf2 {[%clk 0:00:05]}  Kg4 {[%clk 0:01:04]} 113. Bc6 {[%clk 0:00:05]}  Nd3+ {[%clk 0:01:04]} 114. Ke2 {[%clk 0:00:05]}  Ne5 {[%clk 0:01:05]} 115. Bb7 {[%clk 0:00:05]}  Kg3 {[%clk 0:01:05]} 116. Ba8 {[%clk 0:00:05]}  Ng4 {[%clk 0:01:05]} 117. Bb7 {[%clk 0:00:04]}  Nf6 {[%clk 0:01:05]} 118. Bc6 {[%clk 0:00:04]}  Nd7 {[%clk 0:01:06]} 119. Bxd7 {[%clk 0:00:04]}  f3+ {[%clk 0:01:06]} 120. Kf1 {[%clk 0:00:04]}  f2 {[%clk 0:01:07]} 121. Bc6 {[%clk 0:00:04]}  Kh2 {[%clk 0:01:06]} 122. Kxf2 {[%clk 0:00:05]} 1/2-1/2


[Site "https://www.chess.com"]

[Event "Titled Tuesday Blitz May 23 Late 2023"]
[White "Vlassov, Nikolai"]
[Black "Przybylski, Wojciech"]
[WhiteFideId "4103360"]
[BlackFideId "1117599"]
[WhiteElo "2324"]
[BlackElo "2222"]
[Result "1-0"]
[Round "06"]
[TimeControl "180+2"]
[Date "2023.05.23"]
[WhiteClock "0:00:19"]
[BlackClock "0:00:03"]

1. e4 {[%clk 0:03:00]}  c5 {[%clk 0:02:57]} 2. c3 {[%clk 0:03:00]}  d5 {[%clk 0:02:55]} 3. exd5 {[%clk 0:03:00]}  Qxd5 {[%clk 0:02:55]} 4. d4 {[%clk 0:03:00]}  Nf6 {[%clk 0:02:54]} 5. Nf3 {[%clk 0:03:00]}  e6 {[%clk 0:02:53]} 6. a3 {[%clk 0:03:00]}  Nc6 {[%clk 0:02:47]} 7. Be3 {[%clk 0:02:59]}  cxd4 {[%clk 0:02:44]} 8. cxd4 {[%clk 0:03:00]}  Be7 {[%clk 0:02:43]} 9. Nc3 {[%clk 0:03:01]}  Qd7 {[%clk 0:02:33]} 10. Bb5 {[%clk 0:02:56]}  O-O {[%clk 0:02:31]} 11. Qa4 {[%clk 0:02:42]}  Qd6 {[%clk 0:02:24]} 12. O-O {[%clk 0:02:31]}  Bd7 {[%clk 0:02:23]} 13. Ne5 {[%clk 0:02:21]}  a6 {[%clk 0:02:01]} 14. Bxc6 {[%clk 0:02:19]}  Bxc6 {[%clk 0:01:50]} 15. Nxc6 {[%clk 0:02:12]}  Qxc6 {[%clk 0:01:50]} 16. Qxc6 {[%clk 0:02:11]}  bxc6 {[%clk 0:01:51]} 17. Rac1 {[%clk 0:02:09]}  Nd5 {[%clk 0:01:45]} 18. Na4 {[%clk 0:02:04]}  Rfc8 {[%clk 0:01:25]} 19. Rc2 {[%clk 0:01:58]}  a5 {[%clk 0:01:20]} 20. Rfc1 {[%clk 0:01:57]}  Ra6 {[%clk 0:01:20]} 21. Kf1 {[%clk 0:01:53]}  Kf8 {[%clk 0:01:19]} 22. Ke2 {[%clk 0:01:53]}  Ke8 {[%clk 0:01:18]} 23. Kd3 {[%clk 0:01:53]}  Kd7 {[%clk 0:01:17]} 24. Bd2 {[%clk 0:01:45]}  Rb8 {[%clk 0:01:14]} 25. g3 {[%clk 0:01:33]}  Rb3+ {[%clk 0:01:08]} 26. Ke2 {[%clk 0:01:30]}  h5 {[%clk 0:01:03]} 27. Bc3 {[%clk 0:01:14]}  g5 {[%clk 0:01:00]} 28. Rd1 {[%clk 0:01:09]}  g4 {[%clk 0:00:56]} 29. Rd3 {[%clk 0:01:08]}  f5 {[%clk 0:00:52]} 30. Bd2 {[%clk 0:01:06]}  Rb8 {[%clk 0:00:46]} 31. Kf1 {[%clk 0:00:53]}  h4 {[%clk 0:00:45]} 32. gxh4 {[%clk 0:00:48]}  f4 {[%clk 0:00:41]} 33. Nc3 {[%clk 0:00:41]}  Bd6 {[%clk 0:00:20]} 34. Ne4 {[%clk 0:00:40]}  Rh8 {[%clk 0:00:17]} 35. h3 {[%clk 0:00:31]}  Rxh4 {[%clk 0:00:14]} 36. hxg4 {[%clk 0:00:31]}  Rxg4 {[%clk 0:00:14]} 37. Rc5 {[%clk 0:00:28]}  a4 {[%clk 0:00:13]} 38. Rxd5 {[%clk 0:00:27]}  cxd5 {[%clk 0:00:07]} 39. Nf6+ {[%clk 0:00:27]}  Ke7 {[%clk 0:00:08]} 40. Nxg4 {[%clk 0:00:27]}  Rb6 {[%clk 0:00:08]} 41. Bc3 {[%clk 0:00:25]}  Kf7 {[%clk 0:00:08]} 42. Ne5+ {[%clk 0:00:25]}  Bxe5 {[%clk 0:00:08]} 43. dxe5 {[%clk 0:00:25]}  Kg6 {[%clk 0:00:09]} 44. Rd4 {[%clk 0:00:25]}  Kf5 {[%clk 0:00:08]} 45. Rxa4 {[%clk 0:00:25]}  Rc6 {[%clk 0:00:09]} 46. Ke2 {[%clk 0:00:24]}  Rc8 {[%clk 0:00:06]} 47. Kf3 {[%clk 0:00:24]}  Rh8 {[%clk 0:00:06]} 48. Rxf4+ {[%clk 0:00:24]}  Kg5 {[%clk 0:00:06]} 49. Rg4+ {[%clk 0:00:24]}  Kf5 {[%clk 0:00:07]} 50. a4 {[%clk 0:00:24]}  Rh3+ {[%clk 0:00:06]} 51. Rg3 {[%clk 0:00:24]}  Rh4 {[%clk 0:00:07]} 52. a5 {[%clk 0:00:24]}  d4 {[%clk 0:00:06]} 53. Bd2 {[%clk 0:00:23]}  Rh7 {[%clk 0:00:03]} 54. Rg5# {[%clk 0:00:19]} 1-0


[Site "https://www.chess.com"]

[Event "Titled Tuesday Blitz May 23 Late 2023"]
[White "Javakhadze, Zurab"]
[Black "Bilan, Danila"]
[WhiteFideId "13603647"]
[BlackFideId "24161918"]
[WhiteElo "2381"]
[BlackElo "2182"]
[Result "1-0"]
[Round "06"]
[TimeControl "180+2"]
[Date "2023.05.23"]
[WhiteClock "0:00:33"]
[BlackClock "0:00:00"]

1. d4 {[%clk 0:03:00]}  d5 {[%clk 0:02:53]} 2. c4 {[%clk 0:03:01]}  c6 {[%clk 0:02:53]} 3. Nc3 {[%clk 0:03:01]}  Nf6 {[%clk 0:02:52]} 4. e3 {[%clk 0:02:57]}  e6 {[%clk 0:02:50]} 5. Nf3 {[%clk 0:02:56]}  Nbd7 {[%clk 0:02:49]} 6. Be2 {[%clk 0:02:50]}  Bd6 {[%clk 0:02:45]} 7. O-O {[%clk 0:02:45]}  O-O {[%clk 0:02:44]} 8. b3 {[%clk 0:02:46]}  dxc4 {[%clk 0:02:01]} 9. bxc4 {[%clk 0:02:45]}  e5 {[%clk 0:02:02]} 10. Qc2 {[%clk 0:02:39]}  Re8 {[%clk 0:01:55]} 11. h3 {[%clk 0:02:39]}  Qe7 {[%clk 0:01:44]} 12. Bb2 {[%clk 0:02:24]}  e4 {[%clk 0:01:25]} 13. Nd2 {[%clk 0:02:21]}  Nf8 {[%clk 0:01:20]} 14. Rae1 {[%clk 0:02:14]}  Ng6 {[%clk 0:01:16]} 15. f4 {[%clk 0:02:10]}  exf3 {[%clk 0:01:06]} 16. Bxf3 {[%clk 0:02:09]}  Bg3 {[%clk 0:00:58]} 17. Re2 {[%clk 0:02:07]}  Nh4 {[%clk 0:00:44]} 18. e4 {[%clk 0:01:36]}  Nxf3+ {[%clk 0:00:36]} 19. Rxf3 {[%clk 0:01:28]}  Nh5 {[%clk 0:00:30]} 20. e5 {[%clk 0:01:23]}  Qh4 {[%clk 0:00:07]} 21. Nce4 {[%clk 0:01:09]}  Bf4 {[%clk 0:00:02]} 22. Nf1 {[%clk 0:01:05]}  Bf5 {[%clk 0:00:01]} 23. Qc3 {[%clk 0:00:46]}  g6 {[%clk 0:00:01]} 24. g3 {[%clk 0:00:37]}  Qxh3 {[%clk 0:00:00]} 25. Nf2 {[%clk 0:00:33]} 1-0


[Site "https://www.chess.com"]

[Event "Titled Tuesday Blitz May 23 Late 2023"]
[White "Rosen, Eric"]
[Black "Toniutti, Ezio"]
[WhiteFideId "2032562"]
[BlackFideId "113034"]
[WhiteElo "2331"]
[BlackElo "2215"]
[Result "1-0"]
[Round "06"]
[TimeControl "180+2"]
[Date "2023.05.23"]
[WhiteClock "0:00:04"]
[BlackClock "0:00:05"]

1. d4 {[%clk 0:03:00]}  d5 {[%clk 0:02:59]} 2. Bf4 {[%clk 0:03:01]}  Nf6 {[%clk 0:02:59]} 3. e3 {[%clk 0:03:02]}  e6 {[%clk 0:02:58]} 4. Nf3 {[%clk 0:03:02]}  Bd6 {[%clk 0:02:59]} 5. Ne5 {[%clk 0:03:03]}  O-O {[%clk 0:02:55]} 6. Nd2 {[%clk 0:03:03]}  c5 {[%clk 0:02:55]} 7. c3 {[%clk 0:03:04]}  Qc7 {[%clk 0:02:54]} 8. Bd3 {[%clk 0:03:04]}  Nbd7 {[%clk 0:02:54]} 9. Ndf3 {[%clk 0:03:04]}  Ne4 {[%clk 0:02:54]} 10. O-O {[%clk 0:03:02]}  f6 {[%clk 0:02:53]} 11. Nxd7 {[%clk 0:03:02]}  Bxd7 {[%clk 0:02:53]} 12. Qc2 {[%clk 0:02:51]}  Bxf4 {[%clk 0:02:42]} 13. exf4 {[%clk 0:02:51]}  Qxf4 {[%clk 0:02:39]} 14. dxc5 {[%clk 0:02:46]}  Rac8 {[%clk 0:02:34]} 15. Bxe4 {[%clk 0:02:40]}  dxe4 {[%clk 0:02:33]} 16. Qd2 {[%clk 0:02:40]}  Qc7 {[%clk 0:02:18]} 17. Nd4 {[%clk 0:00:47]}  Qxc5 {[%clk 0:02:16]} 18. Rfe1 {[%clk 0:00:47]}  f5 {[%clk 0:02:10]} 19. Rad1 {[%clk 0:00:47]}  Rfd8 {[%clk 0:02:07]} 20. Qg5 {[%clk 0:00:45]}  h6 {[%clk 0:01:40]} 21. Qg6 {[%clk 0:00:45]}  Qe7 {[%clk 0:01:40]} 22. f3 {[%clk 0:00:42]}  exf3 {[%clk 0:01:24]} 23. Nxf3 {[%clk 0:00:42]}  Qf7 {[%clk 0:01:08]} 24. Qg3 {[%clk 0:00:41]}  Bc6 {[%clk 0:01:03]} 25. Ne5 {[%clk 0:00:40]}  Qf6 {[%clk 0:01:03]} 26. Ng6 {[%clk 0:00:27]}  Kh7 {[%clk 0:00:57]} 27. Nf4 {[%clk 0:00:18]}  Be4 {[%clk 0:00:46]} 28. h4 {[%clk 0:00:14]}  e5 {[%clk 0:00:39]} 29. Nh3 {[%clk 0:00:12]}  f4 {[%clk 0:00:31]} 30. Qg4 {[%clk 0:00:09]}  Bf5 {[%clk 0:00:31]} 31. Qf3 {[%clk 0:00:10]}  Rxd1 {[%clk 0:00:27]} 32. Rxd1 {[%clk 0:00:09]}  Qxh4 {[%clk 0:00:22]} 33. Nf2 {[%clk 0:00:05]}  Re8 {[%clk 0:00:19]} 34. Ne4 {[%clk 0:00:02]}  Qg4 {[%clk 0:00:18]} 35. Qd3 {[%clk 0:00:01]}  Qg6 {[%clk 0:00:17]} 36. Re1 {[%clk 0:00:01]}  Bxe4 {[%clk 0:00:17]} 37. Rxe4 {[%clk 0:00:02]}  Re6 {[%clk 0:00:17]} 38. Qe2 {[%clk 0:00:02]}  Qf5 {[%clk 0:00:17]} 39. Kf2 {[%clk 0:00:02]}  b6 {[%clk 0:00:16]} 40. c4 {[%clk 0:00:02]}  Qf6 {[%clk 0:00:14]} 41. b4 {[%clk 0:00:03]}  Qf5 {[%clk 0:00:15]} 42. a4 {[%clk 0:00:02]}  g5 {[%clk 0:00:14]} 43. c5 {[%clk 0:00:02]}  bxc5 {[%clk 0:00:14]} 44. bxc5 {[%clk 0:00:03]}  g4 {[%clk 0:00:15]} 45. Qc2 {[%clk 0:00:03]}  g3+ {[%clk 0:00:15]} 46. Ke2 {[%clk 0:00:03]}  Kg6 {[%clk 0:00:15]} 47. c6 {[%clk 0:00:03]}  Rd6 {[%clk 0:00:14]} 48. c7 {[%clk 0:00:03]}  Rd4 {[%clk 0:00:12]} 49. c8=Q {[%clk 0:00:03]}  Rxe4+ {[%clk 0:00:10]} 50. Kd1 {[%clk 0:00:03]}  Rd4+ {[%clk 0:00:08]} 51. Kc1 {[%clk 0:00:03]}  Qxc2+ {[%clk 0:00:06]} 52. Qxc2+ {[%clk 0:00:03]}  Kg5 {[%clk 0:00:06]} 53. Qh7 {[%clk 0:00:03]}  f3 {[%clk 0:00:06]} 54. Qg7+ {[%clk 0:00:03]}  Kf4 {[%clk 0:00:06]} 55. Qf7+ {[%clk 0:00:03]}  Ke3 {[%clk 0:00:05]} 56. Qxf3# {[%clk 0:00:04]} 1-0


[Site "https://www.chess.com"]

[Event "Titled Tuesday Blitz May 23 Late 2023"]
[White "NikaVolkov"]
[Black "Buchenau, Frank"]
[BlackFideId "4604350"]
[WhiteElo "2628"]
[BlackElo "2157"]
[Result "1-0"]
[Round "06"]
[TimeControl "180+2"]
[Date "2023.05.23"]
[WhiteClock "0:02:12"]
[BlackClock "0:00:37"]

1. Nf3 {[%clk 0:02:55]}  Nf6 {[%clk 0:02:59]} 2. e3 {[%clk 0:02:55]}  b6 {[%clk 0:02:59]} 3. d4 {[%clk 0:02:56]}  Bb7 {[%clk 0:02:59]} 4. c4 {[%clk 0:02:56]}  e6 {[%clk 0:02:59]} 5. Nc3 {[%clk 0:02:57]}  Bb4 {[%clk 0:02:58]} 6. Bd3 {[%clk 0:02:58]}  O-O {[%clk 0:02:57]} 7. O-O {[%clk 0:02:58]}  Bxc3 {[%clk 0:02:56]} 8. bxc3 {[%clk 0:02:59]}  d6 {[%clk 0:02:49]} 9. Nd2 {[%clk 0:02:57]}  e5 {[%clk 0:02:48]} 10. Qc2 {[%clk 0:02:57]}  c5 {[%clk 0:02:44]} 11. d5 {[%clk 0:02:55]}  Qe7 {[%clk 0:02:37]} 12. f4 {[%clk 0:02:55]}  exf4 {[%clk 0:02:26]} 13. exf4 {[%clk 0:02:55]}  Nbd7 {[%clk 0:02:20]} 14. Nf3 {[%clk 0:02:54]}  Rfe8 {[%clk 0:02:15]} 15. Bd2 {[%clk 0:02:53]}  Ne4 {[%clk 0:02:12]} 16. Rae1 {[%clk 0:02:49]}  f5 {[%clk 0:02:12]} 17. g4 {[%clk 0:02:45]}  Qf7 {[%clk 0:02:00]} 18. Ng5 {[%clk 0:02:44]}  Nxg5 {[%clk 0:01:51]} 19. fxg5 {[%clk 0:02:45]}  Rxe1 {[%clk 0:01:49]} 20. Bxe1 {[%clk 0:02:46]}  Ne5 {[%clk 0:01:23]} 21. Bxf5 {[%clk 0:02:42]}  Qe7 {[%clk 0:01:17]} 22. Bxh7+ {[%clk 0:02:40]}  Kh8 {[%clk 0:01:17]} 23. Bf5 {[%clk 0:02:40]}  Qxg5 {[%clk 0:01:14]} 24. Qg2 {[%clk 0:02:39]}  Qe3+ {[%clk 0:01:07]} 25. Kh1 {[%clk 0:02:35]}  Rf8 {[%clk 0:01:00]} 26. Bg3 {[%clk 0:02:25]}  g6 {[%clk 0:00:48]} 27. Re1 {[%clk 0:02:13]}  Qxc3 {[%clk 0:00:43]} 28. Qh3+ {[%clk 0:02:12]}  Kg7 {[%clk 0:00:42]} 29. Bxe5+ {[%clk 0:02:12]}  dxe5 {[%clk 0:00:37]} 30. Qxc3 {[%clk 0:02:12]} 1-0


[Site "https://www.chess.com"]

[Event "Titled Tuesday Blitz May 23 Late 2023"]
[White "Piesik, Piotr"]
[Black "Rodriguez, Santiago"]
[WhiteFideId "1136194"]
[BlackFideId "3000591"]
[WhiteElo "2299"]
[BlackElo "2249"]
[Result "0-1"]
[Round "06"]
[TimeControl "180+2"]
[Date "2023.05.23"]
[WhiteClock "0:01:34"]
[BlackClock "0:01:30"]

1. Nf3 {[%clk 0:02:50]}  Nf6 {[%clk 0:02:59]} 2. g3 {[%clk 0:02:50]}  e6 {[%clk 0:02:59]} 3. Bg2 {[%clk 0:02:50]}  d5 {[%clk 0:03:00]} 4. O-O {[%clk 0:02:50]}  Be7 {[%clk 0:03:01]} 5. d3 {[%clk 0:02:51]}  O-O {[%clk 0:03:01]} 6. Nbd2 {[%clk 0:02:52]}  c5 {[%clk 0:03:01]} 7. e4 {[%clk 0:02:51]}  Nc6 {[%clk 0:03:01]} 8. Re1 {[%clk 0:02:52]}  b5 {[%clk 0:03:01]} 9. e5 {[%clk 0:02:52]}  Nd7 {[%clk 0:03:00]} 10. c3 {[%clk 0:02:52]}  a5 {[%clk 0:02:50]} 11. Nf1 {[%clk 0:02:52]}  Qc7 {[%clk 0:02:50]} 12. Bf4 {[%clk 0:02:52]}  Bb7 {[%clk 0:02:50]} 13. h4 {[%clk 0:02:51]}  Rfc8 {[%clk 0:02:49]} 14. h5 {[%clk 0:02:51]}  h6 {[%clk 0:02:49]} 15. g4 {[%clk 0:02:50]}  Qd8 {[%clk 0:02:36]} 16. Qd2 {[%clk 0:02:49]}  d4 {[%clk 0:02:36]} 17. Ng3 {[%clk 0:02:32]}  dxc3 {[%clk 0:02:32]} 18. bxc3 {[%clk 0:02:33]}  b4 {[%clk 0:02:22]} 19. Ne4 {[%clk 0:02:18]}  bxc3 {[%clk 0:02:12]} 20. Qxc3 {[%clk 0:02:18]}  Nd4 {[%clk 0:02:10]} 21. Nxd4 {[%clk 0:02:12]}  cxd4 {[%clk 0:02:09]} 22. Qxd4 {[%clk 0:02:12]}  Nc5 {[%clk 0:01:43]} 23. Qxd8+ {[%clk 0:02:09]}  Rxd8 {[%clk 0:01:41]} 24. Nxc5 {[%clk 0:02:06]}  Bxg2 {[%clk 0:01:40]} 25. Nxe6 {[%clk 0:02:04]}  fxe6 {[%clk 0:01:34]} 26. Kxg2 {[%clk 0:02:04]}  Rxd3 {[%clk 0:01:34]} 27. Rad1 {[%clk 0:01:40]}  Rad8 {[%clk 0:01:31]} 28. Rd2 {[%clk 0:01:40]}  Rxd2 {[%clk 0:01:29]} 29. Bxd2 {[%clk 0:01:34]}  Rxd2 {[%clk 0:01:30]} 0-1


[Site "https://www.chess.com"]

[Event "Titled Tuesday Blitz May 23 Late 2023"]
[White "Dudzinski, Pawel"]
[Black "Manukyan, Sargis A."]
[WhiteFideId "1117890"]
[BlackFideId "13303970"]
[WhiteElo "2099"]
[BlackElo "2187"]
[Result "0-1"]
[Round "06"]
[TimeControl "180+2"]
[Date "2023.05.23"]
[WhiteClock "0:00:00"]
[BlackClock "0:00:27"]

1. e4 {[%clk 0:03:00]}  c5 {[%clk 0:03:00]} 2. Nc3 {[%clk 0:02:57]}  d6 {[%clk 0:02:59]} 3. g3 {[%clk 0:02:58]}  g6 {[%clk 0:02:59]} 4. Bg2 {[%clk 0:02:59]}  Nc6 {[%clk 0:03:00]} 5. d3 {[%clk 0:02:59]}  Bg7 {[%clk 0:03:00]} 6. Be3 {[%clk 0:02:59]}  e6 {[%clk 0:03:01]} 7. Qd2 {[%clk 0:03:00]}  b6 {[%clk 0:03:01]} 8. Nge2 {[%clk 0:02:58]}  Ba6 {[%clk 0:03:00]} 9. d4 {[%clk 0:02:57]}  cxd4 {[%clk 0:02:58]} 10. Nxd4 {[%clk 0:02:58]}  Nge7 {[%clk 0:02:55]} 11. O-O-O {[%clk 0:02:25]}  O-O {[%clk 0:02:36]} 12. Nxc6 {[%clk 0:02:24]}  Nxc6 {[%clk 0:02:37]} 13. Qxd6 {[%clk 0:02:25]}  Qxd6 {[%clk 0:02:38]} 14. Rxd6 {[%clk 0:02:24]}  Na5 {[%clk 0:02:39]} 15. Bd4 {[%clk 0:02:04]}  e5 {[%clk 0:02:24]} 16. Be3 {[%clk 0:02:04]}  Nc4 {[%clk 0:02:25]} 17. Rd7 {[%clk 0:01:28]}  Nxe3 {[%clk 0:02:24]} 18. fxe3 {[%clk 0:01:29]}  Bc8 {[%clk 0:02:13]} 19. Rd6 {[%clk 0:01:25]}  Be6 {[%clk 0:02:12]} 20. Nd5 {[%clk 0:01:14]}  Rfd8 {[%clk 0:02:10]} 21. Rxd8+ {[%clk 0:01:07]}  Rxd8 {[%clk 0:02:11]} 22. Kd2 {[%clk 0:00:52]}  f5 {[%clk 0:02:10]} 23. c4 {[%clk 0:00:51]}  Bf8 {[%clk 0:01:54]} 24. exf5 {[%clk 0:00:46]}  gxf5 {[%clk 0:01:51]} 25. e4 {[%clk 0:00:46]}  b5 {[%clk 0:01:47]} 26. b3 {[%clk 0:00:27]}  bxc4 {[%clk 0:01:37]} 27. bxc4 {[%clk 0:00:28]}  Kg7 {[%clk 0:01:37]} 28. Rb1 {[%clk 0:00:26]}  Rd7 {[%clk 0:01:37]} 29. Rb5 {[%clk 0:00:25]}  Bd6 {[%clk 0:01:31]} 30. Kd3 {[%clk 0:00:20]}  f4 {[%clk 0:01:28]} 31. gxf4 {[%clk 0:00:19]}  exf4 {[%clk 0:01:29]} 32. Bf3 {[%clk 0:00:19]}  Kf7 {[%clk 0:01:18]} 33. c5 {[%clk 0:00:19]}  Be5 {[%clk 0:01:17]} 34. Kc4 {[%clk 0:00:20]}  a6 {[%clk 0:01:14]} 35. Rb6 {[%clk 0:00:18]}  Ra7 {[%clk 0:01:09]} 36. c6 {[%clk 0:00:18]}  Bc8 {[%clk 0:00:48]} 37. Kc5 {[%clk 0:00:18]}  a5 {[%clk 0:00:42]} 38. Bh5+ {[%clk 0:00:17]}  Kg7 {[%clk 0:00:41]} 39. Rb1 {[%clk 0:00:16]}  a4 {[%clk 0:00:39]} 40. Rg1+ {[%clk 0:00:15]}  Kf8 {[%clk 0:00:40]} 41. h3 {[%clk 0:00:08]}  Ra5+ {[%clk 0:00:40]} 42. Kb6 {[%clk 0:00:07]}  Ra6+ {[%clk 0:00:37]} 43. Kb5 {[%clk 0:00:07]}  Ra8 {[%clk 0:00:35]} 44. Bg4 {[%clk 0:00:08]}  Bd4 {[%clk 0:00:25]} 45. Rf1 {[%clk 0:00:06]}  Ba6+ {[%clk 0:00:26]} 46. Kb4 {[%clk 0:00:00]}  Bxf1 {[%clk 0:00:27]} 0-1


[Site "https://www.chess.com"]